[Event "HSK GM Invitational 2022"]
[Site "Hamburg"]
[Date "2022.05.25"]
[Round "7.5"]
[White "Woelk, Tom-Frederic"]
[Black "Mendonca, Leon Luke"]
[Result "0-1"]
[ECO "B12"]
[WhiteElo "2315"]
[BlackElo "2551"]
[Annotator "TA"]
[PlyCount "116"]
[EventDate "2022.05.20"]
[EventType "tourn"]
[EventCountry "GER"]
[SourceTitle "playchess.com"]
[Source "ChessBase"]
[SourceQuality "1"]
[TimeControl "40/5400+30:1800+30"]

{[%evp 11,116,14,30,-13,-10,-3,-3,-7,-3,-4,-4,-16,-9,0,-14,0,-11,0,0,-14,-20,-16,-6,-7,-7,-20,-20,-100,-22,-19,-19,-21,-18,-22,-13,-14,-16,-43,-40,-65,-61,-65,-3,-5,-4,-4,-4,-6,0,0,0,-97,-98,-482,-445,-482,-468,-442,-340,-471,-418,-467,-461,-411,-206,-199,-197,-186,-149,-164,-220,-213,-166,-169,-167,-235,-235,-235,-230,-227,-220,-217,-200,-560,-568,-751,-737,-677,-676,-1287,-1192,-520,-218,-218,-214,-1877,-1422,-3129,-2460,-1397,-1100,-6794,-5995,-1508,-493,-29980,-29980]} 1. e4 {[%emt 0:00:04]} c6 {[%emt 0:02:11]} 2. d4 {[%emt 0:00:52]} d5 {[%emt 0:00:06]} 3. e5 {[%emt 0:00:06]} Bf5 {[%emt 0:01:31]} 4. h4 {[%emt 0:01:09]} h5 {[%emt 0:00:59]} 5. Bd3 {[%emt 0:00:25]} Bxd3 {[%emt 0:00:11]} 6. Qxd3 {[%emt 0:00:05]} e6 {[%emt 0:00:21]} 7. Bg5 {[%emt 0:00:31] B12: Caro-Kann: Advance Variation.} Qb6 {[%emt 0:09:09]} 8. Nd2 {[%emt 0:00:39]} c5 {[%emt 0:07:10]} 9. c4 {[%emt 0:00:05] The position is equal.} Qxb2 {[%emt 0:06:30]} 10. Rd1 {[%emt 0:00:05]} Nc6 {[%emt 0:03:08][%cal Bb8c6,Bc6b4,Bb4c2][%mdl 32]} 11. Ngf3 {[%emt 0:00:15]} Nb4 {[%emt 0:05:10] 11...Nge7 is vanishing.} (11... cxd4 12. cxd5 exd5 13. e6 $16) 12. Qe2 {[%emt 0:00:25]} cxd4 {[%emt 0:03:08]} 13. O-O $1 {[%emt 0:01:30]} d3 {[%emt 0:03:15]} (13... Qxa2 14. Nxd4 Qa6 15. Ra1 $14) 14. Qe3 {[%emt 0:00:06]} Qa3 {[%emt 0:01:58] [#]} (14... Qxa2 $2 15. Ra1 Nc2 16. Rxa2 $18) 15. Nd4 $146 {[%emt 0:03:46]} ({Predecessor:} 15. cxd5 Nxd5 16. Qe1 Bb4 17. Qe4 Qa6 18. Rb1 Nge7 19. Rxb4 Nxb4 20. Bxe7 Nd5 21. Bd6 {0-1 (43) Schulze,T (2280)-Fridman,D (2621) Magdeburg 2021}) 15... Nc2 $1 {[%emt 0:07:42]} (15... Qxa2 $2 16. Ra1 Nc2 17. Rxa2 $18) 16. Qf4 {[%emt 0:00:13]} Nxd4 {[%emt 0:02:46]} (16... Qxa2 17. Nxc2 dxc2 18. Ra1 $14) 17. Qxd4 {[%emt 0:00:07]} Bc5 {[%emt 0:07:57]} (17... Qxa2 $2 18. Ra1 Qc2 19. Rfc1 $18) 18. Qf4 {[%emt 0:02:08] Black must now prevent cxd5.} Ne7 {[%emt 0:05:01]} (18... Qxa2 19. Ra1 Qb2 20. cxd5 exd5 21. e6 $16 (21. Rab1 Qd4 $11)) 19. Qf3 {[%emt 0:13:59]} (19. Bxe7 $11 {keeps the balance.} Bxe7 20. cxd5 exd5 21. Nb3) 19... Bb4 {[%emt 0:13:37]} (19... Rd8 $17 {aiming for ...b6.} 20. Rb1 b6) 20. Bxe7 $11 {[%emt 0:05:06][%mdl 64] Remove Defender} Bxe7 {[%emt 0:00:57]} 21. cxd5 {[%emt 0:00:06]} exd5 {[%emt 0:01:07]} (21... Qxa2 22. d6 Qd5 23. dxe7 Qxf3 24. Nxf3 $18) 22. Nb3 {[%emt 0:06:33]} Qb4 {[%emt 0:07:06]} 23. Qxd3 {[%emt 0:03:01]} Qc4 {[%emt 0:04:18]} 24. Qb1 {[%emt 0:06:52]} Qe4 {[%emt 0:03:22]} (24... Bxh4 $2 25. Rd4 Bxf2+ 26. Rxf2 $18) 25. Qc1 {[%emt 0:20:05]} O-O {[%emt 0:01:12]} (25... Bxh4 $2 26. Rd4 Bxf2+ 27. Rxf2 Qxe5 28. Qc5 Qe1+ 29. Rf1 Qe3+ 30. Kh1 $18) ({But not} 25... Qxe5 26. Rfe1 Qd6 27. Nd4 $11) 26. Qc7 {[%emt 0:01:49][%csl LRb7,LRe7]} Bd8 {[%emt 0:00:54]} ({Much worse is} 26... Qxh4 27. Qxb7 Rab8 28. Qxd5 $11) (26... Qb4 $15) 27. Qxb7 {[%emt 0:01:08]} Bb6 {[%emt 0:00:04] White should prevent ...Rad8.} 28. Qxd5 {[%emt 0:02:02]} Qxh4 {[%emt 0:00:08]} 29. Nc5 {[%emt 0:01:36]} Rad8 {[%emt 0:01:24]} 30. Nd7 $1 {[%emt 0:05:01]} ({Much weaker is} 30. Qe4 Qxe4 31. Nxe4 Bd4 $17) 30... Rfe8 {[%emt 0:00:08] The board is on fire.} 31. Qb5 {[%emt 0:01:40]} (31. Qf3 $1 $11 {was the only way to keep the balance.}) 31... Bd4 $36 {[%emt 0:01:51][%mdl 2048] Black is on the roll.} 32. Rd3 $2 {[%emt 0:08:00][%mdl 8192] Now White is beyond hope.} (32. Qd5 $17 {nothing else works.} Bxe5 33. g3) 32... Re7 $1 $19 {[%emt 0:00:14]} 33. e6 {[%emt 0:01:55]} Rxe6 {[%emt 0:01:11][%cal Oe6e1] Strongly threatening ...Re1!} 34. Qd5 {[%emt 0:03:21]} Bb6 {[%emt 0:00:43]} 35. Qf3 {[%emt 0:02:51] [#]} Bc7 $1 {[%emt 0:00:47][%csl Gc7][%cal Rh4h2]} 36. g3 {[%emt 0:00:29]} Qe7 {[%emt 0:00:32]} 37. Rfd1 {[%emt 0:00:39]} Rd6 {[%emt 0:00:36]} (37... h4 $142 38. Nc5 Rxd3 39. Nxd3 hxg3) 38. Nc5 {[%emt 0:00:07][%cal Bd7c5,Bc5d3,Bd3f4][%mdl 32]} Rxd3 {[%emt 0:00:04]} 39. Nxd3 {[%emt 0:00:05]} g6 {[%emt 0:00:28]} 40. Nf4 {[%emt 0:00:53]} Rxd1+ {[%emt 0:00:25]} 41. Qxd1 {[%emt 0:30:01][%mdl 4096] Endgame KQB-KQN} Qe4 {[%emt 0:03:59]} 42. Nd5 {[%emt 0:00:00]} Be5 {[%emt 0:07:42] Prevents Nf6+.} 43. Qd2 {[%emt 0:00:00]} (43. Qb3 {might work better.}) 43... Qd4 {[%emt 0:03:34]} 44. Qxd4 {[%emt 0:00:00]} Bxd4 {[%emt 0:00:01] KB-KN} 45. Kg2 {[%emt 0:00:00]} f6 {[%emt 0:02:20]} 46. f4 {[%emt 0:00:00]} Kf7 {[%emt 0:00:12]} 47. f5 $2 {[%emt 0:00:00] [#]} (47. Kf3 {is more resistant.}) 47... g5 $1 {[%emt 0:10:09]} 48. Nc7 {[%emt 0:00:00]} Be5 {[%emt 0:01:45]} 49. Ne6 {[%emt 0:00:00]} a5 {[%emt 0:02:29]} 50. a4 {[%emt 0:01:03]} g4 {[%emt 0:00:04] Threatens to win with ...Ke8.} 51. Kf2 {[%emt 0:01:53]} Kg8 {[%emt 0:00:53]} (51... Bd6 $142 {Hoping for ...Be5.} 52. Kg2 Kg8) 52. Kg2 {[%emt 0:03:41]} Kh7 {[%emt 0:00:14] And now ...Kh6 would win.} 53. Nc5 $2 {[%emt 0:01:50]} (53. Nf8+ Kg7 54. Ng6) 53... Kh6 {[%emt 0:01:00]} 54. Ne4 {[%emt 0:01:09]} h4 {[%emt 0:01:43]} 55. gxh4 {[%emt 0:00:11]} Kh5 {[%emt 0:00:06]} 56. Ng3+ {[%emt 0:00:31]} Kxh4 {[%emt 0:00:13]} 57. Ne4 {[%emt 0:00:02]} g3 {[%emt 0:01:12]} (57... Bb2 $142 58. Kf1 Bd4) 58. Kf3 {[%emt 0:00:07]} (58. Nd2 $19 Kg4 59. Nc4) 58... Kh3 {[%emt 0:00:20] Weighted Error Value: White=0.76/Black=0.31} 0-1

[Event "HSK GM Invitational 2022"]
[Site "Hamburg"]
[Date "2022.05.26"]
[Round "8.1"]
[White "Prohaszka, Peter"]
[Black "Mendonca, Leon Luke"]
[Result "1/2-1/2"]
[ECO "A46"]
[WhiteElo "2579"]
[BlackElo "2551"]
[Annotator "TA"]
[PlyCount "144"]
[EventDate "2022.05.20"]
[EventType "tourn"]
[EventCountry "GER"]
[SourceTitle "playchess.com"]
[Source "ChessBase"]
[SourceQuality "1"]
[TimeControl "40/5400+30:1800+30"]

{[%evp 9,144,8,18,0,41,5,32,25,25,11,38,31,105,67,79,10,0,-20,48,48,54,62,50,52,114,112,115,125,122,125,118,114,100,121,161,155,154,168,181,150,181,186,183,179,163,166,313,317,313,281,334,334,325,243,243,206,187,135,135,118,118,118,118,31,31,31,31,31,31,31,31,31,31,31,31,31,31,31,31,31,12829,31,31,31,31,0,24,0,1833,51,58,58,12571,0,0,0,0,0,0,0,0,0,0,0,0,0,0,0,0,0,0,0,0,0,0,0,0,0,0,0,0,0,0,0,0,0,0,0,0,0,0,0,0,0,0,0,0]} 1. Nf3 {[%emt 0:00:04]} Nf6 {[%emt 0:00:47]} 2. g3 {[%emt 0:00:19]} d5 {[%emt 0:00:44]} 3. Bg2 {[%emt 0:00:14]} e6 {[%emt 0:00:52]} 4. d4 {[%emt 0:00:35]} b5 {[%emt 0:03:02]} 5. O-O {[%emt 0:03:54]} Nbd7 {[%emt 0:10:02]} 6. Bf4 {[%emt 0:07:56] A46: 1 d4 Nf6 2 Nf3 e6: Torre, London and Colle Systems.} c5 {[%emt 0:11:43]} 7. c3 {[%emt 0:13:45]} (7. Nc3 $5 {[%cal Rc3b5]} a6 8. e4 dxe4 9. Ng5 $14) 7... Bb7 {[%emt 0:12:25]} 8. a4 {[%emt 0:07:16] White is slightly better.} b4 {[%emt 0:07:39]} 9. a5 {[%emt 0:02:07]} bxc3 {[%emt 0:12:32]} 10. Nxc3 {[%emt 0:01:08] [#]} Be7 $146 {[%emt 0:02:52]} (10... Rc8 $1 $14) ({Predecessor:} 10... a6 11. dxc5 Bxc5 12. Ne5 Nxe5 13. Bxe5 O-O 14. Na4 Qxa5 15. Qb3 Bb4 16. Bd4 Qb5 {0-1 (38) Cosma,E (2324)-Deac,B (2559) Medias 2016}) 11. dxc5 {[%emt 0:17:51] White is more active.} Bxc5 {[%emt 0:02:37]} 12. b4 {[%emt 0:02:55]} ({White should try} 12. a6 $16 Bc6 13. Nd4 Bxd4 14. Qxd4) 12... Bxb4 $11 {[%emt 0:05:47]} 13. Qb3 {[%emt 0:00:24]} Bxc3 {[%emt 0:03:05]} (13... Bxa5 $11 14. Rxa5 Qxa5 15. Qxb7 O-O) 14. Qxc3 $14 {[%emt 0:00:13] And now Qb4 would win.} Ba6 {[%emt 0:08:40]} 15. Qa3 {[%emt 0:12:41]} Ne4 $1 {[%emt 0:04:04]} (15... Bxe2 $2 16. Nd4 Bxf1 17. Nc6 $18) 16. Nd2 $36 {[%emt 0:02:20][%mdl 2048] White fights for an advantage.} Qe7 {[%emt 0:06:08]} (16... Bxe2 17. Bxe4 Bxf1 18. Rxf1 $18) ({Black should play} 16... Nxd2 $14 17. Bxd2 h6) 17. Nxe4 $16 {[%emt 0:02:35]} Qxa3 {[%emt 0:00:08]} 18. Rxa3 {[%emt 0:00:05]} dxe4 {[%emt 0:00:02]} 19. Bxe4 {[%emt 0:04:35]} Rc8 {[%emt 0:00:16]} 20. Bd3 {[%emt 0:01:11]} Bxd3 {[%emt 0:02:20]} 21. Rxd3 {[%emt 0:00:11]} Ke7 {[%emt 0:02:29]} 22. Rb1 $1 {[%emt 0:04:20]} Nc5 {[%emt 0:01:25] Inhibits Rb7+.} 23. Rc3 {[%emt 0:03:01] Hoping for Rbc1.} Rc6 {[%emt 0:01:22]} 24. Be5 {[%emt 0:08:28]} f6 {[%emt 0:00:49]} 25. Bd4 {[%emt 0:00:07]} Rhc8 {[%emt 0:00:27]} 26. Bxc5+ {[%emt 0:00:09]} Rxc5 $18 {[%emt 0:00:03][%mdl 4096] Endgame KRR-KRR} 27. Rb7+ {[%emt 0:00:08]} Kf8 {[%emt 0:00:57]} (27... Kd6 $142 28. Rd3+ Ke5) 28. Rxc5 {[%emt 0:00:31]} Rxc5 {[%emt 0:00:01]} 29. Rxa7 {[%emt 0:00:06] KR-KR} h5 {[%emt 0:01:00]} 30. f3 {[%emt 0:03:29]} Rc3 {[%emt 0:00:32]} 31. Rb7 {[%emt 0:00:35] Black must now prevent a6.} Ra3 {[%emt 0:00:18]} 32. Rb5 {[%emt 0:00:14]} Kf7 {[%emt 0:00:43]} 33. Kf2 {[%emt 0:00:30]} (33. Rxh5 $6 Ra1+ 34. Kf2 f5 $16) (33. f4 $18) 33... g5 $16 {[%emt 0:00:35]} 34. h4 {[%emt 0:01:12]} Kg6 {[%emt 0:00:31]} 35. hxg5 {[%emt 0:00:29]} fxg5 {[%emt 0:00:02]} 36. f4 {[%emt 0:00:07]} (36. Rb6 $1 $16 {[%cal Rb6e6]}) 36... gxf4 $14 {[%emt 0:00:52]} 37. gxf4 {[%emt 0:00:01] Strongly threatening Rg5+.} h4 {[%emt 0:00:31]} 38. Kg2 {[%emt 0:00:28]} Kf6 {[%emt 0:00:29]} 39. Re5 {[%emt 0:00:11]} Rg3+ {[%emt 0:00:31]} 40. Kh2 {[%emt 0:00:05] e3 is the strong threat.} Ra3 {[%emt 0:00:33]} 41. e3 {[%emt 0:33:44] Threatens to win with Kh3.} Ra1 {[%emt 0:03:54]} 42. Kh3 {[%emt 0:00:00]} Rh1+ $1 {[%emt 0:00:16]} 43. Kg4 {[%emt 0:00:00]} h3 {[%emt 0:13:11]} 44. Kg3 {[%emt 0:00:00]} (44. Rh5 h2 45. Kh3 Re1 46. Kxh2 Rxe3 $16) 44... Ke7 $2 {[%emt 0:01:31][%mdl 8192] [#]} (44... Kf7 $14) 45. Rh5 $2 {[%emt 0:00:00]} (45. f5 $1 $18 Kf6 46. Re4 (46. Rxe6+ Kxf5 47. Re8 Ra1 $18) 46... Kxf5 47. Ra4) 45... Re1 $1 {[%emt 0:01:09]} 46. Kf3 {[%emt 0:00:00]} (46. Rxh3 $6 Rxe3+ 47. Kg4 Re4 $16) 46... Ra1 {[%emt 0:01:27]} 47. Kg3 {[%emt 0:00:14]} Re1 $1 {[%emt 0:00:16]} 48. Re5 $2 {[%emt 0:00:30][%mdl 8192]} (48. Rxh3 Rxe3+ 49. Kg4 Re4 $14) (48. Kf2 $11 Ra1 49. Kg3 (49. Rxh3 Rxa5 50. e4 Ke8 $14)) 48... Rh1 $1 $18 {[%emt 0:00:01] [#]} 49. e4 $2 {[%emt 0:00:46]} (49. f5 $1 $18 Kf6 50. Re4 (50. Rxe6+ Kxf5 51. Rh6 Ra1 $11) 50... Kxf5 51. Rf4+ Ke5 52. Ra4) 49... Kf7 {[%emt 0:06:29]} 50. Rh5 {[%emt 0:00:22]} Re1 $2 {[%emt 0:00:39][%mdl 8192]} (50... Kg6 $14 51. Rc5 (51. Rxh3 Ra1 $16) 51... Re1 52. f5+ (52. Kxh3 Rxe4 53. Kg3 Ra4 $16) 52... Kg5) 51. Rh8 $2 {[%emt 0:02:33]} (51. Rxh3 $18 Rxe4 52. Rh8) 51... Kg7 $1 $11 {[%emt 0:02:46] The position is equal.} 52. Rxh3 {[%emt 0:01:11]} Rxe4 {[%emt 0:00:39]} 53. Rh5 {[%emt 0:00:36]} Ra4 {[%emt 0:00:42]} 54. Kg4 {[%emt 0:00:25]} Kf6 {[%emt 0:00:34]} 55. Re5 {[%emt 0:00:02]} Ra3 {[%emt 0:00:20]} 56. Rh5 {[%emt 0:00:23]} Kg6 {[%emt 0:00:56]} 57. Rc5 {[%emt 0:00:12]} Kf6 {[%emt 0:00:08]} 58. Re5 {[%emt 0:00:26]} Rc3 {[%emt 0:00:39]} 59. Rh5 {[%emt 0:00:24]} Ra3 {[%emt 0:00:09]} 60. Rh6+ {[%emt 0:00:26]} Kg7 {[%emt 0:00:33]} 61. Rxe6 {[%emt 0:00:11]} Rxa5 {[%emt 0:00:04]} 62. Rb6 {[%emt 0:00:02]} Kf7 {[%emt 0:00:06]} 63. Rb7+ {[%emt 0:00:12]} Kf6 {[%emt 0:00:04]} 64. Rh7 {[%emt 0:00:08]} Rb5 {[%emt 0:00:10]} 65. Rh6+ {[%emt 0:00:04]} Kf7 {[%emt 0:00:04]} 66. Ra6 {[%emt 0:00:07]} Rc5 {[%emt 0:00:05]} 67. f5 {[%emt 0:00:10]} Rc1 {[%emt 0:00:04]} 68. Rg6 {[%emt 0:00:13]} Rg1+ {[%emt 0:00:04]} 69. Kh5 {[%emt 0:00:05]} Rh1+ {[%emt 0:00:09]} 70. Kg5 {[%emt 0:00:01]} Rg1+ {[%emt 0:00:07]} 71. Kf4 {[%emt 0:00:03]} Rxg6 {[%emt 0:00:05]} 72. fxg6+ {[%emt 0:00:02]} Kxg6 {[%emt 0:00:06] Weighted Error Value: White=0.55/Black=0.17 (very precise)} 1/2-1/2

[Event "HSK GM Invitational 2022"]
[Site "Hamburg"]
[Date "2022.05.26"]
[Round "8.2"]
[White "Souleidis, Georgios"]
[Black "Woelk, Tom-Frederic"]
[Result "1-0"]
[ECO "B47"]
[WhiteElo "2430"]
[BlackElo "2315"]
[Annotator "TA"]
[PlyCount "101"]
[EventDate "2022.05.20"]
[EventType "tourn"]
[EventCountry "GER"]
[SourceTitle "playchess.com"]
[Source "ChessBase"]
[SourceQuality "1"]
[TimeControl "40/5400+30:1800+30"]

{[%evp 18,101,31,28,59,58,70,65,78,72,80,88,87,0,22,21,101,73,63,0,143,93,101,90,91,65,60,65,139,133,134,136,129,123,131,120,151,127,133,133,195,204,196,185,178,198,220,224,240,238,239,236,354,355,362,370,446,445,432,383,410,451,466,458,490,523,555,515,586,561,615,608,610,610,567,555,998,998,990,943,1288,1254,1125,1073,29978,29974]} 1. e4 {[%emt 0:00:06]} c5 {[%emt 0:00:09]} 2. Nf3 {[%emt 0:00:21]} e6 {[%emt 0:00:11]} 3. d4 {[%emt 0:00:15]} cxd4 {[%emt 0:00:05]} 4. Nxd4 {[%emt 0:00:07]} Nc6 {[%emt 0:00:03]} 5. Nc3 {[%emt 0:00:07]} Qc7 {[%emt 0:00:02]} 6. f4 {[%emt 0:00:14]} a6 {[%emt 0:01:19]} 7. Nxc6 {[%emt 0:00:11]} Qxc6 {[%emt 0:00:46]} 8. Bd3 {[%emt 0:00:21]} b5 {[%emt 0:04:49]} 9. Qe2 {[%emt 0:00:16]} Bb7 {[%emt 0:03:25]} 10. Bd2 {[%emt 0:00:07]} Bb4 {[%emt 0:09:22] B47: Sicilian: Taimanov: 5 Nc3 Qc7 6 f4, 6 g3 and 6 Be2.} 11. O-O-O {[%emt 0:10:50]} Nf6 {[%emt 0:06:56]} 12. Rhe1 {[%emt 0:01:40] [#]} Be7 $146 {[%emt 0:21:27] White is slightly better.} ({Predecessor:} 12... O-O 13. Kb1 Rfe8 14. g4 d6 15. g5 Nd7 16. Qh5 g6 17. Qh6 d5 18. Qh4 Bf8 {1-0 (32) Renet,O (2532)-Moor,R (2410) Switzerland 2018}) 13. a3 {[%emt 0:14:11]} b4 {[%emt 0:12:01]} 14. axb4 {[%emt 0:00:16]} Bxb4 {[%emt 0:00:05]} 15. Kb1 {[%emt 0:00:38]} (15. g4 $16) 15... O-O $11 {[%emt 0:04:23]} 16. g4 {[%emt 0:11:11]} d5 {[%emt 0:05:48]} (16... Rfb8 $11) 17. e5 {[%emt 0:17:07]} d4 {[%emt 0:07:47]} 18. Ne4 {[%emt 0:00:06]} (18. exf6 dxc3 19. Qe5 (19. fxg7 Rfd8 $11) 19... Rfc8 $11) ({Better is} 18. Na2 $14 Bxd2 19. Rxd2) 18... Nxe4 {[%emt 0:01:27]} (18... Nd5 $11 {keeps the balance.}) 19. Bxe4 {[%emt 0:06:17]} ({Resist} 19. Bxb4 Nc5 $14) (19. Qxe4 $142 Qxe4 20. Bxe4 Bxd2 21. Rxd2 Bxe4 22. Rxe4) 19... Qb6 $16 {[%emt 0:00:23]} 20. Bxb4 {[%emt 0:00:05]} Qxb4 {[%emt 0:00:07]} 21. Bxb7 {[%emt 0:00:29]} Rab8 {[%emt 0:03:54]} 22. Qe4 {[%emt 0:04:10][%cal Od1d4]} Rfd8 {[%emt 0:02:16] [#] Black is on the road to losing.} (22... Rxb7 $14 23. Qxd4 h5) 23. Rd3 $1 {[%emt 0:00:37] And now Rb3 would win.} Qxb7 {[%emt 0:00:56]} (23... Rxb7 $2 24. Rb3 $18) 24. Qxb7 {[%emt 0:00:12]} Rxb7 {[%emt 0:00:06][%mdl 4096] Endgame [#] KRR-KRR} 25. Red1 $1 {[%emt 0:00:02]} Rdb8 {[%emt 0:04:24]} 26. b3 {[%emt 0:00:03]} ({Don't play} 26. Rxd4 $6 Rxb2+ 27. Kc1 Kf8 $11) 26... g5 {[%emt 0:00:09]} 27. Rxd4 {[%emt 0:01:53]} gxf4 {[%emt 0:00:07]} 28. Rxf4 {[%emt 0:00:04]} Rb5 {[%emt 0:00:04]} (28... a5 $16 29. Kb2 Rc7) 29. Rd7 $18 {[%emt 0:00:38]} Rf8 {[%emt 0:00:57] [#]} 30. Re4 {[%emt 0:00:19]} a5 {[%emt 0:02:36]} 31. Kb2 {[%emt 0:02:30]} Rfb8 {[%emt 0:03:34]} 32. Ka3 {[%emt 0:02:05]} Rc5 {[%emt 0:00:26]} 33. c4 {[%emt 0:00:58]} Kg7 {[%emt 0:00:45]} 34. Ra7 {[%emt 0:02:05]} ({Much less strong is} 34. Rf4 Rf8 35. Re4 Rh8) 34... Kg6 {[%emt 0:02:30]} (34... h6 {was worth a try.} 35. Kb2 Kg8) 35. h4 {[%emt 0:02:24]} Kg7 {[%emt 0:01:44]} 36. g5 {[%emt 0:03:09]} Kg6 {[%emt 0:01:17]} 37. Rf4 {[%emt 0:01:07]} Rxe5 {[%emt 0:00:11]} 38. Rfxf7 {[%emt 0:01:43]} Re3 {[%emt 0:00:21]} 39. Rg7+ {[%emt 0:00:34]} Kf5 {[%emt 0:00:37]} 40. Rxa5+ {[%emt 0:00:18]} e5 {[%emt 0:00:18]} 41. Rb5 {[%emt 0:30:05]} Re8 {[%emt 0:31:25]} 42. Rxh7 {[%emt 0:00:13]} Rg3 {[%emt 0:00:29]} 43. Rbb7 {[%emt 0:02:20]} e4 {[%emt 0:00:52]} 44. Rhe7 {[%emt 0:01:30]} Ra8+ {[%emt 0:00:14]} 45. Kb4 {[%emt 0:00:11]} e3 {[%emt 0:00:15]} 46. g6 {[%emt 0:00:33][%cal Bg5g6,Bg6g7][%mdl 32]} Kg4 {[%emt 0:00:00]} 47. g7 {[%emt 0:00:00]} Kxh4 {[%emt 0:00:00]} 48. Re4+ {[%emt 0:00:00]} Kh3 {[%emt 0:00:00]} 49. Rbe7 {[%emt 0:00:00]} Rb8+ {[%emt 0:00:00]} 50. Kc5 {[%emt 0:00:00]} Rxb3 {[%emt 0:00:00] [#]} 51. Rxe3 $3 {[%emt 0:00:00][%mdl 512] Weighted Error Value: White=0.10 (very precise) /Black=0.30} 1-0